fUSD/lending_fUSD_20250109
["ID","MTS","AMOUNT","RATE_DAILY","PERIOD"]
[348346979,1736459439442,-549.94,9.845e-05,2]
[348346980,1736459439451,-634.78,9.845e-05,2]
[348346981,1736459439461,-500.0,9.845e-05,2]
[348346982,1736459439470,-500.0,9.845e-05,2]
[348346983,1736459439481,-852.99,9.845e-05,2]
[348346984,1736459439492,-500.0,9.845e-05,2]
[348346985,1736459439502,-502.15532186,9.845e-05,2]
[348346986,1736459439513,-500.0,9.845e-05,2]
[348346987,1736459439524,-500.0,9.845e-05,2]
[348346988,1736459439534,-500.0,9.845e-05,2]
[348346989,1736459439543,-500.0,9.845e-05,2]
[348346990,1736459439566,-568.66,9.845e-05,2]
[348346991,1736459439577,-500.0,9.845e-05,2]
[348346992,1736459439586,-500.0,9.845e-05,2]
[348346993,1736459439595,-500.0,9.845e-05,2]
[348346994,1736459439604,-500.0,9.845e-05,2]
[348346995,1736459439614,-500.0,9.845e-05,2]
[348346996,1736459439623,-500.0,9.845e-05,2]
[348346997,1736459439632,-500.0,9.845e-05,2]
[348346998,1736459439642,-500.0,9.845e-05,2]
[348346999,1736459439652,-500.0,9.845e-05,2]
[348347000,1736459439661,-500.0,9.845e-05,2]
[348347001,1736459439670,-500.0,9.845e-05,2]
[348347002,1736459439680,-500.0,9.845e-05,2]
[348347003,1736459439690,-500.0,9.845e-05,2]
[348347004,1736459439700,-500.0,9.845e-05,2]
[348347005,1736459439709,-500.0,9.845e-05,2]
[348347006,1736459439719,-500.0,9.845e-05,2]
[348347007,1736459439728,-500.0,9.845e-05,2]
[348347008,1736459439738,-500.0,9.845e-05,2]
[348347009,1736459439748,-729.42,9.845e-05,2]
[348347010,1736459439758,-500.0,9.845e-05,2]
[348347011,1736459439767,-500.0,9.845e-05,2]
[348347012,1736459439777,-500.0,9.845e-05,2]
[348347013,1736459439787,-500.0,9.845e-05,2]
[348347014,1736459439802,-500.0,9.845e-05,2]
[348347015,1736459439812,-500.0,9.845e-05,2]
[348347016,1736459439822,-500.0,9.845e-05,2]
[348347017,1736459439832,-559.12,9.845e-05,2]
[348347018,1736459439842,-500.0,9.845e-05,2]
[348347019,1736459439851,-500.0,9.845e-05,2]
[348347020,1736459439861,-500.0,9.845e-05,2]
[348347021,1736459439871,-500.0,9.845e-05,2]
[348347022,1736459439880,-500.0,9.845e-05,2]
[348347023,1736459439890,-500.0,9.845e-05,2]
[348347024,1736459439900,-747.86,9.845e-05,2]
[348347025,1736459439909,-204.92918613,9.845e-05,2]
[348347026,1736459439919,-500.0,9.845e-05,2]
[348347027,1736459439929,-953.2,9.845e-05,2]
[348347028,1736459439939,-500.0,9.845e-05,2]
[348347029,1736459439949,-500.0,9.845e-05,2]
[348347030,1736459439959,-1028.76,9.845e-05,2]
[348347031,1736459439969,-500.0,9.845e-05,2]
[348347032,1736459439978,-500.0,9.845e-05,2]
[348347034,1736459439988,-500.0,9.845e-05,2]
[348347035,1736459439997,-500.0,9.845e-05,2]
[348347037,1736459440007,-500.0,9.845e-05,2]
[348347038,1736459440016,-500.0,9.845e-05,2]
[348347039,1736459440025,-500.0,9.845e-05,2]
[348347040,1736459440035,-500.0,9.845e-05,2]
[348347041,1736459440045,-500.0,9.845e-05,2]
[348347042,1736459440058,-500.0,9.845e-05,2]
[348347043,1736459440068,-581.22117344,9.845e-05,2]
[348347044,1736459440078,-500.0,9.845e-05,2]
[348347045,1736459440087,-500.0,9.845e-05,2]
[348347046,1736459440096,-500.0,9.845e-05,2]
[348347047,1736459440105,-500.0,9.845e-05,2]
[348347048,1736459440115,-500.0,9.845e-05,2]
[348347049,1736459440124,-500.0,9.845e-05,2]
[348347050,1736459440134,-500.0,9.845e-05,2]
[348347051,1736459440148,-500.0,9.845e-05,2]
[348347052,1736459440157,-500.0,9.845e-05,2]
[348347053,1736459440166,-500.0,9.845e-05,2]
[348347055,1736459440176,-1500.08,9.845e-05,2]
[348347056,1736459440186,-500.0,9.845e-05,2]
[348347057,1736459440195,-182.84734115,9.845e-05,2]
[348347058,1736459440204,-500.0,9.845e-05,2]
[348347059,1736459440214,-500.0,9.845e-05,2]
[348347060,1736459440226,-500.0,9.845e-05,2]
[348347061,1736459440235,-500.0,9.845e-05,2]
[348347062,1736459440245,-500.0,9.845e-05,2]
[348347063,1736459440254,-507.1,9.845e-05,2]
[348347064,1736459440263,-500.0,9.845e-05,2]
[348347065,1736459440272,-500.0,9.845e-05,2]
[348347066,1736459440282,-500.0,9.845e-05,2]
[348347067,1736459440292,-500.0,9.845e-05,2]
[348347068,1736459440308,-500.0,9.845e-05,2]
[348347069,1736459440318,-913.32,9.845e-05,2]
[348347070,1736459440328,-500.0,9.845e-05,2]
[348347071,1736459440337,-500.0,9.845e-05,2]
[348347072,1736459440347,-500.0,9.845e-05,2]
[348347073,1736459440357,-500.0,9.845e-05,2]
[348347074,1736459440366,-500.0,9.845e-05,2]
[348347075,1736459440375,-500.0,9.845e-05,2]
[348347076,1736459440385,-500.0,9.845e-05,2]
[348347077,1736459440394,-500.0,9.845e-05,2]
[348347078,1736459440402,-500.0,9.845e-05,2]
[348347079,1736459440412,-500.0,9.845e-05,2]
[348347080,1736459440421,-500.0,9.845e-05,2]
[348347081,1736459440430,-500.0,9.845e-05,2]
[348347082,1736459440441,-1136.15,9.845e-05,2]
[348347083,1736459440450,-500.0,9.845e-05,2]
[348347084,1736459440459,-500.0,9.845e-05,2]
[348347085,1736459440469,-500.0,9.845e-05,2]
[348347086,1736459440479,-1115.35,9.845e-05,2]
[348347087,1736459440488,-500.0,9.845e-05,2]
[348347088,1736459440497,-3138.32,9.845e-05,2]
[348347089,1736459440507,-500.0,9.845e-05,2]
[348347090,1736459440516,-500.0,9.845e-05,2]
[348347091,1736459440525,-500.0,9.845e-05,2]
[348347092,1736459440535,-500.0,9.845e-05,2]
[348347093,1736459440546,-500.0,9.845e-05,2]
[348347094,1736459440556,-500.0,9.845e-05,2]
[348347095,1736459440566,-500.0,9.845e-05,2]
[348347096,1736459440576,-500.0,9.845e-05,2]
[348347097,1736459440585,-500.0,9.845e-05,2]
[348347098,1736459440595,-589.54,9.845e-05,2]
[348347099,1736459440605,-500.0,9.845e-05,2]
[348347100,1736459440615,-500.0,9.845e-05,2]
[348347101,1736459440625,-1989.08,9.845e-05,2]
[348347102,1736459440636,-512.08,9.845e-05,2]
[348347103,1736459440649,-500.0,9.845e-05,2]
[348347104,1736459440659,-500.0,9.845e-05,2]
[348347106,1736459440668,-500.0,9.845e-05,2]
[348347108,1736459440678,-500.0,9.845e-05,2]
[348347110,1736459440687,-500.0,9.845e-05,2]
[348347112,1736459440696,-500.0,9.845e-05,2]
[348347114,1736459440705,-500.0,9.845e-05,2]
[348347116,1736459440715,-509.05,9.845e-05,2]
[348347118,1736459440725,-500.0,9.845e-05,2]
[348347120,1736459440734,-500.0,9.845e-05,2]
[348347122,1736459440743,-700.5,9.845e-05,2]
[348347124,1736459440753,-500.0,9.845e-05,2]
[348347126,1736459440762,-500.0,9.845e-05,2]
[348347127,1736459440773,-500.0,9.845e-05,2]
[348347128,1736459440783,-520.31,9.845e-05,2]
[348347129,1736459440793,-500.0,9.845e-05,2]
[348347130,1736459440805,-500.0,9.845e-05,2]
[348347131,1736459440814,-500.0,9.845e-05,2]
[348347132,1736459440824,-5411.48,9.845e-05,2]
[348347133,1736459440834,-522.74,9.845e-05,2]
[348347134,1736459440843,-500.0,9.845e-05,2]
[348347135,1736459440853,-500.0,9.845e-05,2]
[348347136,1736459440862,-500.0,9.845e-05,2]
[348347137,1736459440871,-500.0,9.845e-05,2]
[348347138,1736459440882,-500.0,9.845e-05,2]
[348347139,1736459440891,-500.0,9.845e-05,2]
[348347140,1736459440901,-500.0,9.845e-05,2]
[348347141,1736459440911,-500.0,9.845e-05,2]
[348347142,1736459440921,-500.0,9.845e-05,2]
[348347143,1736459440931,-500.0,9.845e-05,2]
[348347144,1736459440941,-500.0,9.845e-05,2]
[348347145,1736459440950,-150.0,9.845e-05,2]
[348347146,1736459440960,-500.0,9.845e-05,2]
[348347147,1736459440970,-867.86,9.845e-05,2]
[348347148,1736459440979,-2864.59,9.845e-05,2]
[348347149,1736459440989,-5000.0,9.845e-05,2]
[348347150,1736459440998,-500.0,9.845e-05,2]
[348347151,1736459441007,-500.0,9.845e-05,2]
[348347152,1736459441017,-500.0,9.845e-05,2]
[348347153,1736459441026,-500.0,9.845e-05,2]
[348347154,1736459441036,-500.0,9.845e-05,2]
[348347155,1736459441047,-635.36,9.845e-05,2]
[348347156,1736459441056,-584.21542648,9.845e-05,2]
[348347157,1736459441067,-500.0,9.845e-05,2]
[348347158,1736459441077,-500.0,9.845e-05,2]
[348347159,1736459441086,-528.84,9.845e-05,2]
[348347160,1736459441096,-500.0,9.845e-05,2]
[348347161,1736459441106,-500.0,9.845e-05,2]
[348347162,1736459441115,-500.0,9.845e-05,2]
[348347163,1736459441126,-795.26,9.845e-05,2]
[348347164,1736459441137,-500.0,9.845e-05,2]
[348347165,1736459441150,-500.0,9.845e-05,2]
[348347166,1736459441162,-500.0,9.846e-05,2]
[348347167,1736459441171,-529.45,9.846e-05,2]
[348347168,1736459441183,-928.5,9.846e-05,2]
[348347169,1736459441193,-555.11,9.846e-05,2]
[348347170,1736459441202,-806.58,9.846e-05,2]
[348347171,1736459441213,-500.0,9.846e-05,2]
[348347172,1736459441225,-886.22,9.846e-05,2]
[348347173,1736459441235,-749.68,9.846e-05,2]
[348347174,1736459441245,-730.37,9.846e-05,2]
[348347175,1736459441254,-988.71,9.846e-05,2]
[348347176,1736459441263,-679.25,9.846e-05,2]
[348347177,1736459441272,-500.0,9.846e-05,2]
[348347178,1736459441282,-558.96,9.846e-05,2]
[348347179,1736459441292,-500.0,9.846e-05,2]
[348347180,1736459441304,-500.0,9.846e-05,2]
[348347181,1736459441314,-1179.26,9.846e-05,2]
[348347182,1736459441324,-500.0,9.846e-05,2]
[348347183,1736459441334,-1013.62,9.846e-05,2]
[348347184,1736459441343,-1711.82,9.846e-05,2]
[348347185,1736459441352,-500.0,9.846e-05,2]
[348347186,1736459441363,-998.65,9.846e-05,2]
[348347187,1736459441376,-500.0,9.846e-05,2]
[348347188,1736459441388,-552.62,9.846e-05,2]
[348347189,1736459441398,-500.0,9.846e-05,2]
[348347190,1736459441408,-500.0,9.846e-05,2]
[348347191,1736459441419,-747.2,9.846e-05,2]
[348347192,1736459441430,-500.0,9.846e-05,2]
[348347193,1736459441441,-4785.61,9.846e-05,2]
[348347194,1736459441451,-500.0,9.846e-05,2]
[348347195,1736459441461,-500.0,9.846e-05,2]
[348347196,1736459441471,-536.28,9.846e-05,2]
[348347197,1736459441482,-1028.0,9.846e-05,2]
[348347198,1736459441491,-500.0,9.846e-05,2]
[348347199,1736459441501,-1116.07,9.846e-05,2]
[348347200,1736459441510,-1150.91,9.846e-05,2]
[348347201,1736459441520,-1882.5,9.846e-05,2]
[348347202,1736459441529,-1788.92,9.846e-05,2]
[348347203,1736459441539,-4157.02,9.846e-05,2]
[348347204,1736459441550,-1911.96,9.846e-05,2]
[348347205,1736459441560,-2604.81,9.846e-05,2]
[348347206,1736459441633,-500.0,9.846e-05,2]
[348347207,1736459441644,-1903.18,9.846e-05,2]
[348347208,1736459441653,-1795.52,9.846e-05,2]
[348347209,1736459441662,-2023.14,9.847e-05,2]
[348347210,1736459441672,-500.0,9.847e-05,2]
[348347211,1736459441682,-1195.81,9.847e-05,2]
[348347212,1736459441692,-2280.4,9.847e-05,2]
[348347213,1736459441703,-972.49,9.847e-05,2]
[348347214,1736459441712,-995.78,9.847e-05,2]
[348347215,1736459441722,-1048.86,9.847e-05,2]
[348347216,1736459441732,-500.0,9.847e-05,2]
[348347217,1736459441741,-1558.97,9.847e-05,2]
[348347218,1736459441751,-905.88,9.847e-05,2]
[348347219,1736459441760,-1965.02,9.847e-05,2]
[348347220,1736459441769,-1212.01,9.847e-05,2]
[348347221,1736459441780,-1759.6,9.847e-05,2]
[348347222,1736459441789,-1860.2,9.847e-05,2]
[348347223,1736459441800,-2050.64,9.847e-05,2]
[348347224,1736459441809,-2674.47,9.847e-05,2]
[348347225,1736459441818,-8469.32,9.847e-05,2]
[348347226,1736459441828,-1291.36,9.847e-05,2]
[348347227,1736459441838,-1028.5,9.847e-05,2]
[348347228,1736459441847,-1100.74,9.847e-05,2]
[348347229,1736459441858,-500.0,9.847e-05,2]
[348347230,1736459441868,-986.02,9.847e-05,2]
[348347231,1736459441878,-1379.92,9.847e-05,2]
[348347232,1736459441888,-735.41,9.847e-05,2]
[348347233,1736459441897,-1889.74,9.847e-05,2]
[348347234,1736459441907,-500.0,9.847e-05,2]
[348347235,1736459441916,-1296.72,9.847e-05,2]
[348347236,1736459441925,-500.0,9.847e-05,2]
[348347237,1736459441934,-1000.0,9.847e-05,2]
[348347238,1736459441943,-517.04,9.847e-05,2]
[348347239,1736459441952,-2585.24,9.848e-05,2]
[348347240,1736459441962,-1799.39,9.848e-05,2]
[348347241,1736459441973,-9321.38520476,9.85e-05,2]
[348347242,1736459441983,-5560.98073942,9.877e-05,2]
[348347243,1736459441992,-500.0,9.898e-05,2]
[348347244,1736459442001,-500.0,9.898e-05,2]
[348347245,1736459442011,-500.0,9.899e-05,2]
[348347246,1736459442020,-500.0,9.899e-05,2]
[348347247,1736459442030,-500.0,9.899e-05,2]
[348347248,1736459442039,-500.0,9.899e-05,2]
[348347249,1736459442048,-500.0,9.899e-05,2]
[348347250,1736459442058,-500.0,9.899e-05,2]
[348347251,1736459442067,-500.0,9.899e-05,2]
[348347252,1736459442077,-500.0,9.899e-05,2]
[348347253,1736459442086,-500.0,9.899e-05,2]
[348347254,1736459442096,-500.0,9.899e-05,2]
[348347255,1736459442105,-500.0,9.899e-05,2]
[348347256,1736459442114,-500.0,9.899e-05,2]
[348347257,1736459442124,-500.0,9.899e-05,2]
[348347258,1736459442133,-500.0,9.899e-05,2]
[348347259,1736459442145,-500.0,9.899e-05,2]
[348347260,1736459442154,-500.0,9.899e-05,2]
[348347261,1736459442163,-500.0,9.899e-05,2]
[348347262,1736459442172,-500.0,9.899e-05,2]
[348347263,1736459442182,-7742.82965057,9.91e-05,2]
[348347264,1736459442192,-321.92355148,9.921e-05,2]
[348347265,1736459442201,-291.22968245,9.97e-05,2]
[348347266,1736459442212,-291.22968245,9.971e-05,2]
[348347267,1736459442224,-200.0,9.972e-05,2]
[348347268,1736459442234,-4402.0,9.973e-05,2]
[348347269,1736459442245,-500.0,9.973e-05,2]
[348347270,1736459442255,-500.53482152,9.973e-05,2]
[348347271,1736459442264,-241.6803545,9.973e-05,2]
[348347272,1736459442275,-152.0689055,9.973e-05,2]
[348347273,1736459442285,-500.0,9.973e-05,2]
[348347274,1736459442295,-502.90185495,9.973e-05,2]
[348347275,1736459442307,-151.83035857,9.973e-05,2]
[348347276,1736459442316,-291.22968245,9.973e-05,2]
[348347277,1736459442326,-30565.87027098,9.973e-05,2]
[348347278,1736459442749,-593.999997,9.973e-05,2]
[348347279,1736459442793,-151.82612416,9.973e-05,2]
[348347280,1736459442805,-4288.17387584,9.973e-05,2]
[348347281,1736459442817,-705.7996043,9.973e-05,2]
[348347282,1736459442924,150.0,8.079e-05,2]
[348347283,1736459443020,150.0,8.218e-05,2]
[348347284,1736459444260,-150.0,8.559e-05,2]
[348347285,1736459444271,-150.0,9.354e-05,2]
[348347286,1736459444281,-500.0,9.844e-05,2]
[348347287,1736459444290,-500.0,9.844e-05,2]
[348347288,1736459444300,-4.0305234,9.844e-05,2]
[348347289,1736459444312,-495.9694766,9.844e-05,2]
[348347290,1736459444322,-500.0,9.844e-05,2]
[348347291,1736459444332,-500.0,9.844e-05,2]
[348347292,1736459444343,-500.0,9.845e-05,2]
[348347293,1736459444353,-500.0,9.845e-05,2]
[348347294,1736459444363,-500.0,9.845e-05,2]
[348347295,1736459444373,-150.0,9.847e-05,2]
[348347296,1736459444385,-150.0,9.953e-05,2]
[348347297,1736459444395,-6755.7275146,9.973e-05,2]
[348347298,1736459444417,-41903.36950392,9.973e-05,2]
[348347299,1736459444428,-200.0,9.974e-05,2]
[348347300,1736459444666,-157.09,9.974e-05,2]
[348347301,1736459444677,-255153.85254643,9.975e-05,2]
[348347302,1736459444687,-617.05,9.976e-05,2]
[348347303,1736459444696,-255153.85254643,9.977e-05,2]
[348347304,1736459444706,-75687.55930219,9.978e-05,2]
[348347305,1736459444715,-291.22968245,9.978e-05,2]
[348347306,1736459444724,-6156.089,9.978e-05,2]
[348347307,1736459444734,-84812.94076664,9.979e-05,2]
[348347308,1736459444744,-75687.55930219,9.979e-05,2]
[348347309,1736459444754,-472.01283705,9.982e-05,2]
[348347310,1736459444764,-472.01283705,9.982e-05,2]
[348347311,1736459444774,-255153.85254643,9.983e-05,2]
[348347312,1736459444783,-75687.55930219,9.983e-05,2]
[348347313,1736459444793,-84812.94076664,9.984e-05,2]
[348347314,1736459444805,-255153.85254643,9.986e-05,2]
[348347315,1736459444815,-84812.94076664,9.987e-05,2]
[348347316,1736459444824,-472.01283705,9.988e-05,2]
[348347317,1736459444835,-200.0,9.988e-05,2]
[348347318,1736459444845,-291.22968245,9.99e-05,2]
[348347319,1736459444855,-200.0,9.991e-05,2]
[348347320,1736459444864,-84812.94076664,9.992e-05,2]
[348347321,1736459444874,-291.22968245,9.992e-05,2]
[348347322,1736459444883,-75687.55930219,9.994e-05,2]
[348347323,1736459444893,-472.01283705,9.994e-05,2]
[348347324,1736459444903,-255153.85254643,9.997e-05,2]
[348347325,1736459444913,-84812.94076664,9.997e-05,2]
[348347326,1736459444924,-75687.55930219,9.997e-05,2]
[348347327,1736459444933,-500.0,9.998e-05,2]
[348347328,1736459444944,-472.01283705,9.998e-05,2]
[348347329,1736459444954,-75687.55930219,9.999e-05,2]
[348347330,1736459444963,-399.06854385,9.999e-05,3]
[348347331,1736459444972,-156.995149,9.999e-05,2]
[348347332,1736459444981,-500.0,9.999e-05,2]
[348347333,1736459444991,-500.0,9.999e-05,2]
[348347334,1736459445000,-500.0,9.999e-05,2]
[348347335,1736459445009,-500.0,9.999e-05,2]
[348347336,1736459445018,-500.0,9.999e-05,2]
[348347337,1736459445027,-500.0,9.999e-05,2]
[348347338,1736459445036,-500.0,9.999e-05,2]
[348347339,1736459445046,-500.0,9.999e-05,2]
[348347340,1736459445059,-500.0,9.999e-05,2]
[348347341,1736459445068,-500.0,9.999e-05,2]
[348347342,1736459445078,-500.0,9.999e-05,2]
[348347343,1736459445087,-500.0,9.999e-05,2]
[348347344,1736459445096,-500.0,9.999e-05,2]
[348347345,1736459445105,-336.78193485,9.999e-05,2]
[348347346,1736459445115,-500.0,9.999e-05,2]
[348347347,1736459445124,-500.0,9.999e-05,2]
[348347348,1736459445133,-500.0,9.999e-05,2]
[348347349,1736459445147,-1065.76,9.999e-05,2]
[348347350,1736459445156,-958.74,9.999e-05,2]
[348347351,1736459445165,-500.0,9.999e-05,2]
[348347352,1736459445174,-500.0,9.999e-05,2]
[348347353,1736459445184,-1625.64,9.999e-05,2]
[348347354,1736459445193,-1749.42,9.999e-05,2]
[348347355,1736459445202,-2066.33,9.999e-05,2]
[348347356,1736459445212,-472.01283705,9.999e-05,2]
[348347357,1736459445222,-1927.0,0.0001,2]
[348347358,1736459445232,-255153.85254643,0.0001,2]
[348347359,1736459445241,-219.3180513,0.0001,2]
[348347360,1736459445250,-16451.14282589,0.0001,2]
[348347361,1736459445259,-679253.86302559,0.0001,2]
[348347362,1736459445268,-4047337.31612054,0.0001,2]
[348347363,1736459445279,-252.90102083,0.0001,2]
[348347364,1736459445291,-49573.08008862,0.0001,2]
[348347365,1736459445662,-599.0816512,9.844e-05,2]
[348347366,1736459445674,-500.0,9.844e-05,2]
[348347367,1736459445686,-1341.3883488,0.0001,2]
[348347368,1736459445712,-2143.35793935,0.0001,2]
[348347369,1736459445723,-4939.77375769,0.0001,2]
[348347370,1736459445734,-1736.2500075,0.0001,2]
[348347371,1736459445746,-3800.0,0.0001,2]
[348347372,1736459445757,-7855.35575124,0.0001,2]
[348347373,1736459445768,-6610.74015009,0.0001,2]
[348347375,1736459446143,-2500.0,9.744e-05,2]
[348347376,1736459446153,-195.45171749,9.843e-05,2]
[348347377,1736459446164,-306.28654366,9.843e-05,2]
[348347378,1736459446173,-478.78441746,9.843e-05,2]
[348347379,1736459446183,-500.0,9.844e-05,2]
[348347380,1736459446193,-429.92903888,9.844e-05,2]
[348347381,1736459446205,-70.07096112,9.844e-05,2]
[348347382,1736459446214,-500.0,9.844e-05,2]
[348347383,1736459446224,-500.0,9.844e-05,2]
[348347384,1736459446236,-879.92903888,0.0001,2]
[348347385,1736459446249,-1152.9712,0.0001,2]
[348347386,1736459446271,-2102.57192872,0.0001,2]
[348347387,1736459446284,-63516.58198658,0.0001,2]
[348347388,1736459446298,-388.5620595,0.0001,2]
[348347389,1736459446316,-4843.8,0.0001,2]
[348347390,1736459446327,-3268.9080385,0.0001,2]
[348347391,1736459446338,-2018.40251894,0.0001,2]
[348347392,1736459446349,-1320.05848825,0.0001,2]
[348347393,1736459446455,150.0,7.916e-05,2]
[348347394,1736459446495,150.0,8.083e-05,2]
[348347410,1736459446718,838.45,8.219e-05,2]
[348347411,1736459446752,-150.0,9.118e-05,2]
[348347412,1736459446761,-500.0,9.844e-05,2]
[348347415,1736459446771,-500.0,9.844e-05,2]
[348347417,1736459446781,-500.0,9.845e-05,2]
[348347419,1736459446792,-500.0,9.845e-05,2]
[348347421,1736459446804,-7908.5028579,0.0001,2]
[348347426,1736459446841,-500.0,9.844e-05,2]
[348347428,1736459446852,-48631.33580716,0.0001,2]
[348347430,1736459446863,-221114.11305562,0.0001,2]
[348347432,1736459446874,-4858.9206596,0.0001,2]
[348347434,1736459446885,-105928.92131912,0.0001,2]
[348347436,1736459446896,-938.32132995,0.0001,2]
[348347439,1736459446907,-1269.26404567,0.0001,2]
[348347441,1736459446919,-25395.40444371,0.0001,2]
[348347446,1736459446954,-1940.3477441,0.0001,2]
[348347456,1736459447045,-76454.20718732,0.0001,2]
[348348616,1736459487347,150.0,7.866e-05,2]
[348348617,1736459487511,150.0,8.031e-05,2]
[348348630,1736460315040,881.84,8.219e-05,2]
[348348633,1736460424598,-250.0,8.734e-05,2]
[348348634,1736460424624,-1500.0,8.765e-05,2]
[348348652,1736460458933,-250.0,8.941e-05,2]
[348348653,1736460458960,-1711.99,8.964e-05,2]
[348348654,1736460458988,-368.6,8.982e-05,2]
[348348656,1736460487022,250.0,8.752e-05,2]
[348348657,1736460503277,1000.0,8.784e-05,2]
[348348658,1736460507179,150.0,8.943e-05,2]
[348348659,1736460507241,150.0,8.4e-05,2]
[348348660,1736460507682,150.0,8.734e-05,2]
[348348661,1736460507779,150.0,8.905e-05,2]
[348348662,1736460507846,150.0,8.262e-05,2]
[348348666,1736460588829,370.23,8.676e-05,2]
[348348667,1736460627292,150.0,8.12e-05,2]
[348348668,1736460627332,150.0,8.609e-05,2]
[348348669,1736460627515,150.0,7.846e-05,2]
[348348670,1736460627578,150.0,8.802e-05,2]
[348348671,1736460627657,150.0,8.717e-05,2]
[348348681,1736460631523,-150.0,9.008e-05,2]
[348348682,1736460631535,-446.62,9.032e-05,2]
[348348683,1736460631544,-150.0,9.034e-05,2]
[348348684,1736460631554,-150.0,9.038e-05,2]
[348348685,1736460631564,-552.24,9.039e-05,2]
[348348686,1736460631576,-22.1393,9.075e-05,2]
[348348687,1736460631590,-127.8607,9.075e-05,2]
[348348688,1736460631602,-500.0,9.09e-05,2]
[348348689,1736460631612,-933.579315,9.09e-05,2]
[348348690,1736460631624,-66.420685,9.09e-05,2]
[348348691,1736460631634,-162.26,9.11e-05,2]
[348348692,1736460631644,-150.0,9.162e-05,2]
[348348693,1736460631653,-150.0,9.209e-05,2]
[348348694,1736460631664,-150.0,9.254e-05,2]
[348348695,1736460631674,-150.0,9.273e-05,2]
[348348696,1736460631683,-150.0,9.324e-05,2]
[348348697,1736460631696,-5465.7,9.324e-05,2]
[348348698,1736460631706,-166.51,9.325e-05,2]
[348348699,1736460631715,-150.0,9.405e-05,2]
[348348700,1736460631725,-772.01,9.425e-05,2]
[348348701,1736460631735,-437.83,9.425e-05,2]
[348348702,1736460631745,-437.83,9.425e-05,2]
[348348703,1736460631754,-772.01,9.425e-05,2]
[348348704,1736460631764,-29.72931501,9.425e-05,2]
[348348705,1736460631783,-408.10068499,9.425e-05,2]
[348348706,1736460631792,-771.23,9.425e-05,2]
[348348707,1736460631802,-436.45,9.425e-05,2]
[348348708,1736460631812,-158.634,9.5e-05,2]
[348348709,1736460631822,-150.0,9.528e-05,2]
[348348710,1736460631832,-512.46531501,9.644e-05,2]
[348348711,1736460631847,-444.23965357,9.644e-05,2]
[348348712,1736460631873,-486.87103,9.644e-05,2]
[348348713,1736460632044,-1288.0349224,9.644e-05,2]
[348348714,1736460632069,-78.43387902,9.644e-05,2]
[348348715,1736460632079,-150.0,9.701e-05,2]
[348348716,1736460632088,-150.0,9.743e-05,2]
[348348717,1736460632098,-15254.9334118,9.744e-05,2]
[348348718,1736460632110,-3948.47980032,9.744e-05,2]
[348348719,1736460632121,-34428.83505601,9.744e-05,2]
[348348721,1736460632156,-46789.06213187,9.744e-05,2]
[348348723,1736460632165,-370.23,9.761e-05,2]
[348348725,1736460632175,-1000.0,9.8e-05,2]
[348348727,1736460632185,-530.97949097,9.8e-05,2]
[348348730,1736460632198,-151.82612416,9.823e-05,2]
[348348732,1736460632208,-500.0,9.823e-05,2]
[348348733,1736460632218,-263.3191146,9.823e-05,2]
[348348735,1736460632227,-970.42,9.842e-05,2]
[348348737,1736460632236,-3389.72,9.842e-05,2]
[348348739,1736460632245,-1440.13,9.842e-05,2]
[348348741,1736460632255,-2934.02,9.842e-05,2]
[348348743,1736460632264,-8744.14,9.842e-05,2]
[348348745,1736460632273,-500.0,9.842e-05,2]
[348348747,1736460632282,-947.26,9.842e-05,2]
[348348749,1736460632292,-1758.43,9.842e-05,2]
[348348751,1736460632301,-1383.49,9.842e-05,2]
[348348753,1736460632311,-564.61,9.842e-05,2]
[348348755,1736460632321,-2651.39,9.842e-05,2]
[348348757,1736460632331,-5106.12,9.842e-05,2]
[348348759,1736460632341,-3537.88,9.842e-05,2]
[348348761,1736460632351,-1496.61,9.842e-05,2]
[348348763,1736460632361,-1606.22,9.842e-05,2]